fUST/lending_fUST_20260131
["ID","MTS","AMOUNT","RATE_DAILY","PERIOD"]
[404099244,1769837438828,-305.752651,0.00023749,2]
[404099245,1769837438839,-305.752651,0.00023749,2]
[404099246,1769837438849,-305.752651,0.00023749,2]
[404099247,1769837438858,-305.752651,0.00023749,2]
[404099248,1769837438867,-305.752651,0.00023749,2]
[404099249,1769837438877,-305.752651,0.000238,2]
[404099250,1769837438886,-141.42914145,0.00023941,2]
[404099251,1769837438925,-243.08260495,0.00023941,2]
[404099252,1769837438934,-800.0,0.00024,30]
[404099253,1769837438944,-496.47127164,0.00024163,2]
[404099254,1769837438953,-500.0,0.00024177,2]
[404099255,1769837438963,-500.0,0.00024177,2]
[404099256,1769837438972,-500.0,0.00024177,2]
[404099257,1769837438981,-500.0,0.00024177,2]
[404099258,1769837438991,-500.0,0.00024177,2]
[404099259,1769837439000,-500.0,0.00024177,2]
[404099260,1769837439010,-500.0,0.00024177,2]
[404099261,1769837439019,-500.0,0.00024177,2]
[404099262,1769837439028,-500.0,0.00024177,2]
[404099263,1769837439038,-615.67872345,0.00024177,2]
[404099264,1769837439047,-500.0,0.00024177,2]
[404099265,1769837439057,-500.0,0.00024177,2]
[404099266,1769837439066,-500.0,0.00024177,2]
[404099267,1769837439076,-500.0,0.00024177,2]
[404099268,1769837439086,-500.0,0.00024177,2]
[404099269,1769837439095,-500.0,0.00024177,2]
[404099270,1769837439104,-500.0,0.00024177,2]
[404099271,1769837439114,-500.0,0.00024177,2]
[404099272,1769837439123,-500.0,0.00024177,2]
[404099273,1769837439134,-500.0,0.00024177,2]
[404099274,1769837439143,-500.0,0.00024177,2]
[404099275,1769837439152,-500.0,0.00024177,2]
[404099276,1769837439161,-500.0,0.00024177,2]
[404099277,1769837439170,-500.0,0.00024177,2]
[404099278,1769837439181,-500.0,0.00024177,2]
[404099279,1769837439190,-500.0,0.00024177,2]
[404099280,1769837439202,-500.0,0.00024177,2]
[404099281,1769837439212,-500.0,0.00024177,2]
[404099282,1769837439221,-500.0,0.00024177,2]
[404099283,1769837439231,-500.0,0.00024177,2]
[404099284,1769837439240,-500.0,0.00024177,2]
[404099285,1769837439249,-500.0,0.00024177,2]
[404099286,1769837439258,-500.0,0.00024177,2]
[404099287,1769837439267,-500.0,0.00024177,2]
[404099288,1769837439281,-500.0,0.00024177,2]
[404099289,1769837439291,-500.0,0.00024177,2]
[404099290,1769837439300,-500.0,0.00024177,2]
[404099291,1769837439309,-500.0,0.00024177,2]
[404099292,1769837439319,-500.0,0.00024177,2]
[404099293,1769837439328,-500.0,0.00024177,2]
[404099294,1769837439338,-500.0,0.00024177,2]
[404099295,1769837439348,-500.0,0.00024177,2]
[404099296,1769837439357,-500.0,0.00024177,2]
[404099297,1769837439367,-500.0,0.00024177,2]
[404099298,1769837439376,-500.0,0.00024177,2]
[404099299,1769837439386,-500.0,0.00024177,2]
[404099300,1769837439395,-500.0,0.00024177,2]
[404099301,1769837439405,-500.0,0.00024177,2]
[404099302,1769837439414,-500.0,0.00024177,2]
[404099303,1769837439424,-500.0,0.00024177,2]
[404099304,1769837439433,-500.0,0.00024177,2]
[404099305,1769837439442,-313.23071624,0.00024177,2]
[404099306,1769837439453,-500.0,0.00024177,2]
[404099307,1769837439463,-500.0,0.00024177,2]
[404099308,1769837439473,-500.0,0.00024177,2]
[404099309,1769837439484,-500.0,0.00024177,2]
[404099310,1769837439493,-500.0,0.00024177,2]
[404099311,1769837439505,-500.0,0.00024177,2]
[404099312,1769837439514,-500.0,0.00024177,2]
[404099313,1769837439525,-488.59068022,0.00024177,2]
[404099314,1769837439535,-500.0,0.00024177,2]
[404099315,1769837439545,-500.0,0.00024177,2]
[404099316,1769837439555,-500.0,0.00024177,2]
[404099317,1769837439564,-500.0,0.00024177,2]
[404099318,1769837439573,-334.93616657,0.00024177,2]
[404099319,1769837439582,-500.0,0.00024177,2]
[404099320,1769837439595,-499.99999999,0.00024177,2]
[404099321,1769837439606,-323.19968812,0.0002418,2]
[404099322,1769837439615,-38.22448478,0.00024181,2]
[404099323,1769837439628,-112.77551522,0.00024181,2]
[404099324,1769837439639,-151.0,0.00024181,2]
[404099325,1769837439649,-151.0,0.00024181,2]
[404099326,1769837439661,-151.0,0.00024181,2]
[404099327,1769837439671,-151.0,0.00024181,2]
[404099328,1769837439680,-151.0,0.00024181,2]
[404099329,1769837439690,-151.0,0.00024181,2]
[404099330,1769837439700,-1616.4762586,0.00024181,2]
[404099331,1769837439712,-182663.90748813,0.00024181,2]
[404099332,1769837439725,-15724.8129586,0.00024181,2]
[404099333,1769837439737,-6866.38447026,0.00024181,2]
[404099347,1769837440882,-650.76259487,0.00024181,2]
[404099348,1769837440945,-69818.35082582,0.00024181,2]
[404099349,1769837440957,-1320.735,0.00024181,2]
[404099350,1769837440971,-5510.08642875,0.00024181,2]
[404099520,1769837445978,-5000.0,0.00023512,2]
[404099521,1769837445988,-305.752651,0.00023749,2]
[404099522,1769837445997,-9764.09491184,0.00024181,2]
[404099532,1769837446708,-1057.27504513,0.00024081,2]
[404099533,1769837446858,-6348.28362268,0.00024181,2]
[404099534,1769837446937,-11183.94649223,0.00024181,2]
[404099536,1769837505760,-149.2447812,0.000237,2]
[404099537,1769837505782,-769.86856191,0.000237,2]
[404099538,1769837523366,500.0,0.00013273,2]
[404099539,1769837523512,502.46468408,0.00013273,2]
[404099540,1769837526238,503.64175359,0.00013273,2]
[404099541,1769837526272,500.0,0.00013273,2]
[404099542,1769837527496,500.0,0.00013273,2]
[404099543,1769837529026,500.0,0.00013273,2]
[404099544,1769837529555,500.0,0.00013699,2]
[404099545,1769837530319,501.65938454,0.00013273,2]
[404099546,1769837531173,500.97302418,0.00013273,2]
[404099547,1769837533686,500.39935816,0.00013273,2]
[404099548,1769837533718,501.64202294,0.00013273,2]
[404099549,1769837535496,502.6628759,0.00013273,2]
[404099550,1769837536467,500.92104894,0.00013273,2]
[404099551,1769837583591,505.71215102,0.00013273,2]
[404099552,1769837583794,500.6138086,0.00013273,2]
[404099553,1769837586668,502.62816155,0.00013273,2]
[404099554,1769837590677,500.43411594,0.00013273,2]
[404099555,1769837591133,521.52345194,0.00013273,2]
[404099556,1769837592505,500.60693725,0.00013273,2]
[404099557,1769837592577,504.48572374,0.00013273,2]
[404099558,1769837593877,501.54015032,0.00013273,2]
[404099559,1769837594547,302.88397848,0.00013673,2]
[404099560,1769837594604,502.09662545,0.00013273,2]
[404099561,1769837598231,500.0,0.00013273,2]
[404099562,1769837598262,185.99810071,0.00013273,2]
[404099563,1769837600902,496.87872884,0.00013273,2]
[404099564,1769837601471,500.0,0.00013273,2]
[404099565,1769837601509,500.0,0.00013273,2]
[404099567,1769837601784,502.64443636,0.00013273,2]
[404099569,1769837643951,500.0,0.00013273,2]
[404099570,1769837644022,503.604701,0.00013821,2]
[404099571,1769837644120,500.0,0.00013273,2]
[404099572,1769837644172,1000.0,0.00013821,2]
[404099573,1769837644244,500.79332013,0.00013699,2]
[404099574,1769837644656,500.0,0.00013699,2]
[404099575,1769837645216,500.0,0.00013699,2]
[404099576,1769837647329,500.0,0.00013273,2]
[404099577,1769837647799,160.25971748,0.00013699,2]
[404099578,1769837647827,158.45715877,0.00013699,2]
[404099579,1769837648009,500.0,0.00013699,2]
[404099580,1769837648051,158.26531066,0.00013699,2]
[404099581,1769837650379,500.0,0.00013699,2]
[404099582,1769837650848,500.0,0.00013273,2]
[404099583,1769837651034,1000.0,0.00013821,2]
[404099584,1769837651354,500.0,0.00013699,2]
[404099585,1769837651725,500.0,0.00013273,2]
[404099586,1769837651780,1000.0,0.00013821,2]
[404099587,1769837651881,500.0,0.00013273,2]
[404099588,1769837651932,1000.0,0.00013821,2]
[404099589,1769837652243,500.0,0.00013699,2]
[404099590,1769837652292,500.0,0.00013699,2]
[404099591,1769837653392,500.0,0.00013699,2]
[404099592,1769837653859,500.0,0.00013699,2]
[404099593,1769837654081,500.0,0.00013699,2]
[404099594,1769837654814,506.79422489,0.00013273,2]
[404099595,1769837657793,500.0,0.00013273,2]
[404099596,1769837657857,216.49958707,0.00013821,2]
[404099597,1769837658029,500.0,0.00013699,2]
[404099598,1769837658338,500.0,0.00013699,2]
[404099599,1769837659020,500.0,0.00013699,2]
[404099600,1769837659596,500.0,0.00013273,2]
[404099601,1769837659715,1000.0,0.00013821,2]
[404099602,1769837664904,5000.0,0.00014,2]
[404099603,1769837687057,5000.0,0.00014,2]
[404099604,1769837704527,508.27633682,0.00013273,2]
[404099605,1769837704649,500.0,0.00013699,2]
[404099606,1769837706435,504.97707083,0.00013273,2]
[404099607,1769837706513,502.06034405,0.00013699,2]
[404099608,1769837706543,501.19829014,0.00013699,2]
[404099609,1769837706936,500.0,0.00013699,2]
[404099610,1769837707000,500.0,0.00013699,2]
[404099611,1769837707506,500.0,0.00013699,2]
[404099612,1769837708049,160.2570218,0.00013699,2]
[404099613,1769837708700,158.24450236,0.00013273,2]
[404099614,1769837708781,500.0,0.00013699,2]
[404099615,1769837709789,5000.0,0.00014,2]
[404099616,1769837712340,500.72972338,0.00013699,2]
[404099617,1769837712769,502.42771023,0.00013273,2]
[404099618,1769837714169,500.0,0.00013699,2]
[404099619,1769837714211,500.0,0.00013273,2]
[404099620,1769837714261,256.03495613,0.00013821,2]
[404099621,1769837714564,500.0,0.00013699,2]
[404099622,1769837714592,500.0,0.00013699,2]
[404099623,1769837715455,500.0,0.00013699,2]
[404099624,1769837715623,501.93653153,0.00013699,2]
[404099625,1769837717064,300.0,0.00013673,2]
[404099626,1769837718537,500.0,0.00013699,2]
[404099627,1769837719136,500.0,0.00013699,2]
[404099628,1769837719744,500.0,0.00013699,2]
[404099629,1769837719966,501.41034158,0.00013699,2]
[404099630,1769837720450,500.0,0.00013273,2]
[404099631,1769837720511,552.84529982,0.00013821,2]
[404099632,1769837720944,299.28170696,0.00013699,2]
[404099633,1769837721095,503.38245765,0.00013699,2]
[404099634,1769837722618,500.0,0.00013699,2]
[404099635,1769837723195,500.0,0.00013273,2]
[404099636,1769837723224,500.0,0.00013273,2]
[404099637,1769837723314,1000.0,0.00013821,2]
[404099638,1769837723346,1000.0,0.00013821,2]
[404099639,1769837731957,5000.0,0.00014,2]
[404099640,1769837748386,919.11334311,0.00014,2]
[404099641,1769837756713,5000.0,0.00014,2]
[404099642,1769837763638,501.09706716,0.00013699,2]
[404099643,1769837763793,589.52170976,0.00013699,2]
[404099644,1769837765013,500.0,0.00013273,2]
[404099645,1769837765076,1000.0,0.00013821,2]
[404099646,1769837766801,501.71513047,0.00013699,2]
[404099647,1769837767740,500.0,0.00013273,2]
[404099648,1769837767795,1000.0,0.00013821,2]
[404099649,1769837769005,240.22996772,0.00013699,2]
[404099651,1769837846447,256.0,0.00030137,120]
[404099670,1769838631701,-1200.0,0.00012684,2]
[404099671,1769838631711,-5000.0,0.00012685,2]
[404099672,1769838631720,-599.0,0.00012685,2]
[404099673,1769838631729,-150.0,0.0001291,2]
[404099674,1769838631738,-300.0,0.00013272,2]
[404099675,1769838631748,-500.0,0.00013273,2]
[404099676,1769838631758,-502.85884366,0.00013273,2]
[404099677,1769838631767,-503.60972492,0.00013273,2]
[404099678,1769838631779,-500.0,0.00013273,2]
[404099679,1769838631790,-500.0,0.00013273,2]
[404099680,1769838631799,-503.53413243,0.00013273,2]
[404099681,1769838631809,-500.0,0.00013273,2]
[404099682,1769838631818,-500.0,0.00013273,2]
[404099683,1769838631827,-500.0,0.00013273,2]
[404099684,1769838631838,-500.0,0.00013273,2]
[404099685,1769838631848,-500.0,0.00013273,2]
[404099686,1769838631857,-500.0,0.00013273,2]
[404099687,1769838631865,-354.71824987,0.00013273,2]
[404099688,1769838631875,-398.63237325,0.00013273,2]
[404099689,1769838631884,-500.0,0.00013273,2]
[404099690,1769838631892,-500.0,0.00013273,2]
[404099691,1769838631903,-500.0,0.00013273,2]
[404099692,1769838631912,-500.0,0.00013273,2]
[404099693,1769838631922,-500.0,0.00013273,2]
[404099694,1769838631931,-500.0,0.00013273,2]
[404099695,1769838631940,-500.0,0.00013273,2]
[404099696,1769838631949,-500.0,0.00013273,2]
[404099697,1769838631959,-502.75775555,0.00013273,2]
[404099698,1769838631967,-500.0,0.00013273,2]
[404099699,1769838631981,-500.0,0.00013273,2]
[404099700,1769838631990,-500.0,0.00013273,2]
[404099701,1769838632001,-500.0,0.00013273,2]
[404099702,1769838632010,-150.0,0.00013673,2]
[404099703,1769838632021,-300.0,0.00013673,2]
[404099704,1769838632031,-500.0,0.00013697,2]
[404099705,1769838632041,-500.0,0.00013697,2]
[404099706,1769838632052,-500.0,0.00013697,2]
[404099707,1769838632061,-498.7322978,0.00013697,2]
[404099708,1769838632070,-481.65957406,0.00013697,2]
[404099709,1769838632079,-500.0,0.00013697,2]
[404099710,1769838632089,-381.32307163,0.00013697,2]
[404099711,1769838632098,-770.1,0.00013698,2]
[404099712,1769838632107,-500.0,0.00013698,2]
[404099713,1769838632116,-500.0,0.00013698,2]
[404099714,1769838632126,-500.0,0.00013699,2]
[404099715,1769838632135,-501.32810923,0.00013699,2]
[404099716,1769838632144,-502.38823566,0.00013699,2]
[404099717,1769838632153,-500.0,0.00013699,2]
[404099718,1769838632162,-500.0,0.00013699,2]
[404099719,1769838632171,-174.54782333,0.00013699,2]
[404099720,1769838632181,-502.29493037,0.00013699,2]
[404099721,1769838632190,-587.7546325,0.00013699,2]
[404099722,1769838632199,-501.44892036,0.00013699,2]
[404099723,1769838632209,-500.0,0.00013699,2]
[404099724,1769838632219,-500.0,0.00013699,2]
[404099725,1769838632229,-500.51174732,0.00013699,2]
[404099726,1769838632239,-500.0,0.00013699,2]
[404099727,1769838632248,-500.0,0.00013699,2]
[404099728,1769838632258,-305.07545863,0.00013699,2]
[404099729,1769838632267,-500.0,0.00013699,2]
[404099730,1769838632277,-500.0,0.00013699,2]
[404099731,1769838632286,-500.0,0.00013699,2]
[404099732,1769838632297,-412.05189563,0.00013699,2]
[404099733,1769838632307,-500.0,0.00013699,2]
[404099734,1769838632317,-469.39650554,0.00013699,2]
[404099735,1769838632326,-500.0,0.00013699,2]
[404099736,1769838632335,-500.0,0.00013699,2]
[404099737,1769838632345,-500.0,0.00013699,2]
[404099738,1769838632354,-500.0,0.00013699,2]
[404099739,1769838632364,-500.0,0.00013699,2]
[404099740,1769838632375,-500.0,0.00013699,2]
[404099741,1769838632384,-500.0,0.00013699,2]
[404099742,1769838632394,-500.0,0.00013699,2]
[404099743,1769838632404,-312.87575771,0.00013699,2]
[404099744,1769838632414,-198.51684844,0.00013699,2]
[404099745,1769838632425,-500.0,0.00013699,2]
[404099746,1769838632434,-505.69921186,0.00013699,2]
[404099747,1769838632444,-284.6471586,0.00013699,2]
[404099748,1769838632453,-502.84895644,0.00013699,2]
[404099749,1769838632463,-500.0,0.00013699,2]
[404099750,1769838632472,-500.0,0.00013699,2]
[404099751,1769838632481,-500.0,0.00013699,2]
[404099752,1769838632490,-501.38760063,0.00013699,2]
[404099753,1769838632499,-500.0,0.00013699,2]
[404099754,1769838632508,-501.42123929,0.00013699,2]
[404099755,1769838632517,-502.51844578,0.00013699,2]
[404099756,1769838632526,-500.0,0.00013699,2]
[404099757,1769838632536,-500.0,0.00013699,2]
[404099758,1769838632546,-624.6675822,0.00013699,2]
[404099759,1769838632557,-500.0,0.00013699,2]
[404099760,1769838632566,-158.25156273,0.00013699,2]
[404099761,1769838632576,-500.0,0.00013699,2]
[404099762,1769838632585,-500.10377766,0.00013699,2]
[404099763,1769838632594,-154.09518918,0.00013699,2]
[404099786,1769838637726,-345.90481082,0.00013699,2]
[404099788,1769838637736,-238.58299907,0.00013699,2]
[404099790,1769838637746,-542.05501309,0.00013699,2]
[404099792,1769838637755,-502.41635313,0.00013699,2]
[404099794,1769838637764,-500.0,0.00013699,2]
[404099796,1769838637772,-155.2446848,0.00013699,2]
[404099798,1769838637781,-500.0,0.00013699,2]
[404099800,1769838637790,-504.27057554,0.00013699,2]
[404099802,1769838637800,-258.96671708,0.00013699,2]
[404099804,1769838637809,-478.19814633,0.00013699,2]
[404099806,1769838637819,-504.16996969,0.00013699,2]
[404099807,1769838637828,-502.9321957,0.00013699,2]
[404099809,1769838637837,-500.0,0.00013699,2]
[404099811,1769838637846,-500.0,0.00013699,2]
[404099813,1769838637855,-500.0,0.00013699,2]
[404099815,1769838637865,-500.0,0.00013699,2]
[404099817,1769838637874,-502.85935328,0.00013699,2]
[404099819,1769838637885,-462.44753804,0.00013699,2]
[404099821,1769838637894,-500.0,0.00013699,2]
[404099823,1769838637903,-500.0,0.00013699,2]
[404099825,1769838637912,-504.54130692,0.00013699,2]
[404099827,1769838637921,-500.0,0.00013699,2]
[404099829,1769838637931,-500.0,0.00013699,2]
[404099831,1769838637940,-504.08949317,0.00013699,2]
[404099833,1769838637958,-226.23978169,0.0001382,2]
[404099836,1769838637968,-337.10280583,0.0001382,2]
[404099838,1769838637980,-500.0,0.0001382,2]
[404099840,1769838637991,-1003.30681914,0.00013821,2]
[404099841,1769838638000,-1009.33143255,0.00013821,2]
[404099843,1769838638010,-1000.0,0.00013821,2]
[404099845,1769838638022,-1000.0,0.00013821,2]
[404099847,1769838638031,-973.53260077,0.00013821,2]
[404099849,1769838638041,-1000.0,0.00013821,2]
[404099851,1769838638050,-354.83988095,0.00013821,2]
[404099853,1769838638061,-1000.0,0.00013821,2]
[404099855,1769838638071,-1000.0,0.00013821,2]
[404099858,1769838638082,-1000.0,0.00013821,2]
[404099860,1769838638091,-1000.0,0.00013821,2]
[404099861,1769838638101,-1000.0,0.00013821,2]
[404099862,1769838638111,-1000.0,0.00013821,2]
[404099863,1769838638120,-1000.0,0.00013821,2]
[404099864,1769838638130,-1000.0,0.00013821,2]
[404099865,1769838638139,-501.89247652,0.00013821,2]
[404099866,1769838638149,-5830.42071986,0.00013873,2]
[404099867,1769838638159,-151.0,0.00013902,2]
[404099868,1769838638168,-151.0,0.00013902,2]
[404099869,1769838638178,-1134.147182,0.00013902,2]
[404099870,1769838638187,-1134.147182,0.00013902,2]
[404099871,1769838638197,-1134.147182,0.00013902,2]
[404099872,1769838638207,-1134.147182,0.00013902,2]
[404099873,1769838638216,-2719.810802,0.00013902,2]
[404099874,1769838638226,-1680.0,0.00013952,2]
[404099875,1769838638235,-500.0,0.00013973,2]
[404099876,1769838638245,-300.0,0.00014221,2]
[404099877,1769838638255,-602.93244021,0.00014221,2]
[404099878,1769838638265,-770.1,0.00014246,2]
[404099879,1769838638275,-500.0,0.00014246,2]
[404099880,1769838638284,-453.13347889,0.00014247,2]
[404099881,1769838638293,-1000.0,0.00014247,2]
[404099882,1769838638303,-500.0,0.00014247,2]
[404099883,1769838638312,-1002.18060322,0.00014247,2]
[404099884,1769838638322,-500.0,0.00014247,2]
[404099885,1769838638331,-1000.0,0.00014247,2]
[404099886,1769838638341,-1003.20203145,0.00014247,2]
[404099887,1769838638350,-502.79425358,0.00014247,2]
[404099888,1769838638359,-178.79765011,0.00014247,2]
[404099889,1769838638368,-1002.30952208,0.00014247,2]
[404099890,1769838638378,-501.2204337,0.00014247,2]
[404099891,1769838638387,-501.08866766,0.00014247,2]
[404099892,1769838638396,-1000.0,0.00014247,2]
[404099893,1769838638405,-503.38154122,0.00014247,2]
[404099894,1769838638414,-508.31978341,0.00014247,2]
[404099895,1769838638424,-1003.81149128,0.00014247,2]
[404099896,1769838638433,-511.64534676,0.00014247,2]
[404099897,1769838638443,-396.36291788,0.00014247,2]
[404099898,1769838638457,-1003.01897899,0.00014247,2]
[404099899,1769838638470,-262.55697275,0.00014247,2]
[404099900,1769838638479,-1005.55283869,0.00014247,2]
[404099901,1769838638489,-434.16448358,0.00014247,2]
[404099902,1769838638499,-503.18737711,0.00014247,2]
[404099903,1769838638508,-724.05482008,0.00014247,2]
[404099904,1769838638518,-1000.0,0.00014247,2]
[404099905,1769838638527,-502.64393449,0.00014247,2]
[404099906,1769838638537,-1000.0,0.00014247,2]
[404099907,1769838638546,-1105.55922316,0.00014247,2]
[404099908,1769838638556,-503.64895346,0.00014247,2]
[404099909,1769838638565,-1006.90826306,0.00014247,2]
[404099910,1769838638574,-1000.0,0.00014247,2]
[404099911,1769838638583,-1000.0,0.00014247,2]
[404099912,1769838638592,-1003.20157047,0.00014247,2]
[404099913,1769838638601,-312.57816865,0.00014247,2]
[404099914,1769838638611,-502.9284085,0.00014247,2]
[404099915,1769838638620,-166.843531,0.00014247,2]
[404099916,1769838638629,-152.224822,0.00014247,2]
[404099917,1769838638638,-151.0,0.00014247,2]
[404099918,1769838638648,-1134.147182,0.00014247,2]
[404099919,1769838638657,-1134.147182,0.00014247,2]
[404099920,1769838638667,-1134.147182,0.00014247,2]
[404099921,1769838638676,-1134.147182,0.00014247,2]
[404099923,1769838638686,-770.1,0.00014368,2]
[404099925,1769838638696,-500.0,0.00014368,2]
[404099927,1769838638706,-1500.0,0.00014368,2]
[404099928,1769838638717,-1500.0,0.00014368,2]
[404099929,1769838638727,-1500.0,0.00014368,2]
[404099930,1769838638736,-1500.0,0.00014368,2]
[404099931,1769838638746,-1451.39147836,0.00014368,2]
[404099932,1769838638755,-1500.0,0.00014368,2]
[404099933,1769838638765,-1500.0,0.00014368,2]
[404099934,1769838638774,-1500.0,0.00014368,2]
[404099935,1769838638783,-1500.0,0.00014368,2]
[404099936,1769838638793,-508.93740535,0.00014368,2]
[404099937,1769838638806,-2719.810802,0.00014488,2]
[404099938,1769838638816,-300.0,0.0001453,2]
[404099939,1769838638826,-300.0,0.0001453,2]
[404099940,1769838638835,-300.0,0.0001453,2]
[404099941,1769838638845,-300.0,0.0001453,2]
[404099942,1769838638854,-300.0,0.0001453,2]
[404099943,1769838638864,-300.0,0.0001453,2]
[404099944,1769838638873,-300.0,0.0001453,2]
[404099945,1769838638884,-300.0,0.0001453,2]
[404099946,1769838638893,-300.0,0.0001453,2]
[404099947,1769838638903,-300.0,0.0001453,2]
[404099948,1769838638912,-300.0,0.0001453,2]
[404099949,1769838638922,-300.0,0.0001453,2]
[404099950,1769838638931,-300.0,0.0001453,2]
[404099951,1769838638941,-300.0,0.0001453,2]
[404099952,1769838638950,-300.0,0.0001453,2]
[404099953,1769838638959,-600.0,0.0001453,2]
[404099954,1769838638969,-151.0,0.0001453,2]
[404099955,1769838638982,-1134.147182,0.0001453,2]
[404099956,1769838638991,-1134.147182,0.0001453,2]
[404099957,1769838639000,-1134.147182,0.0001453,2]
[404099958,1769838639010,-1134.147182,0.0001453,2]
[404099959,1769838639020,-420.0,0.00014551,2]
[404099960,1769838639029,-300.16676177,0.00014768,2]
[404099961,1769838639039,-500.0,0.00014794,2]
[404099962,1769838639050,-506.735198,0.00014795,2]
[404099963,1769838639059,-1500.0,0.00014795,2]
[404099964,1769838639068,-503.59517564,0.00014795,2]
[404099965,1769838639078,-507.71040514,0.00014795,2]
[404099966,1769838639088,-1500.0,0.00014795,2]
[404099967,1769838639097,-1003.90866418,0.00014795,2]
[404099968,1769838639107,-1500.0,0.00014795,2]
[404099969,1769838639116,-177.0,0.0001491,2]
[404099970,1769838639126,-151.0,0.00014916,2]
[404099971,1769838639135,-1500.0,0.00014916,2]
[404099972,1769838639144,-1000.0,0.00014916,2]
[404099973,1769838639156,-383.52564742,0.00014916,2]
[404099974,1769838639166,-1500.0,0.00014916,2]
[404099975,1769838639176,-1500.0,0.00014916,2]
[404099976,1769838639186,-2000.0,0.00014916,2]
[404099977,1769838639195,-1000.0,0.00014916,2]
[404099978,1769838639204,-1000.0,0.00014916,2]
[404099979,1769838639214,-246.77583286,0.00014998,2]
[404099980,1769838639224,-530.68154487,0.00014999,2]
[404099981,1769838639234,-568.72045429,0.00014999,2]
[404099982,1769838639244,-529.65,0.00014999,2]
[404099983,1769838639254,-500.0,0.00014999,2]
[404099984,1769838639264,-1000.0,0.00014999,2]
[404099985,1769838639275,-1000.0,0.00014999,2]
[404099986,1769838639285,-1000.0,0.00014999,2]
[404099987,1769838639294,-1000.0,0.00014999,2]
[404099988,1769838639303,-1000.0,0.00014999,2]
[404099989,1769838639313,-500.0,0.00014999,2]
[404099990,1769838639322,-500.0,0.00014999,2]
[404099991,1769838639332,-151.0,0.00014999,2]
[404099992,1769838639342,-1134.147182,0.00014999,2]
[404099993,1769838639352,-1134.147182,0.00014999,2]
[404099994,1769838639361,-1134.147182,0.00014999,2]
[404099995,1769838639370,-1134.147182,0.00014999,2]
[404099996,1769838639380,-1059.59140564,0.00014999,2]
[404099997,1769838639389,-2739.38818322,0.00015,2]
[404099998,1769838639399,-163.518372,0.00015068,2]
[404099999,1769838639409,-2719.810802,0.00015073,2]
[404100000,1769838639418,-770.1,0.00015342,2]
[404100001,1769838639429,-520.88030424,0.00015342,2]
[404100002,1769838639438,-2000.0,0.00015342,2]
[404100003,1769838639448,-702.90287346,0.00015342,2]
[404100004,1769838639457,-1563.0,0.00015348,2]
[404100005,1769838639467,-2500.0,0.00015464,2]
[404100007,1769838639477,-10000.0,0.00015559,2]
[404100009,1769838639486,-151.0,0.00015559,2]
[404100011,1769838639496,-1134.147182,0.00015559,2]
[404100013,1769838639505,-1134.147182,0.00015559,2]
[404100015,1769838639515,-1134.147182,0.00015559,2]
[404100017,1769838639524,-1134.147187,0.00015559,2]
[404100018,1769838639533,-5000.0,0.0001564,2]
[404100019,1769838639543,-2719.810802,0.00015658,2]
[404100020,1769838639552,-2500.0,0.0001589,2]
[404100021,1769838639562,-587.0,0.00015953,2]
[404100022,1769838639571,-720.0,0.00015984,2]
[404100023,1769838639582,-213.460679,0.00015984,2]
[404100024,1769838639592,-770.1,0.00016011,2]